[Event "*** Titled Tuesday Blitz"]
[Site "Chess.com"]
[Date "2019.06.04"]
[Round "9"]
[White "Antipov_Mikhail_Al"]
[Black "Durarbayli"]
[Result "1-0"]
[WhiteElo "2892"]
[BlackElo "2766"]
[TimeControl "180+2"]
[EndTime "15:06:54 PDT"]
[Termination "Antipov_Mikhail_Al won by checkmate"]

1. e4 {[%clk 0:03:01.9]} 1... e6 {[%clk 0:03:01.2]} 2. d4 {[%clk 0:03:02.9]}
2... d5 {[%clk 0:03:02.2]} 3. Nd2 {[%clk 0:03:04.5]} 3... Nf6 {[%clk 0:03:02.3]}
4. e5 {[%clk 0:03:05.2]} 4... Nfd7 {[%clk 0:03:03.8]} 5. Bd3 {[%clk 0:03:04.7]}
5... c5 {[%clk 0:03:05.2]} 6. c3 {[%clk 0:03:05.7]} 6... Nc6 {[%clk 0:03:06.4]}
7. Ngf3 {[%clk 0:03:07]} 7... g6 {[%clk 0:02:48.8]} 8. h4 {[%clk 0:03:03.3]}
8... Qb6 {[%clk 0:02:42.6]} 9. h5 {[%clk 0:02:56.7]} 9... g5 {[%clk 0:02:41]}
10. Nxg5 {[%clk 0:02:56]} 10... cxd4 {[%clk 0:02:41.9]} 11. cxd4 {[%clk
0:02:55.7]} 11... Nxd4 {[%clk 0:02:33.3]} 12. Ndf3 {[%clk 0:02:39.5]} 12... h6
{[%clk 0:01:47.9]} 13. Nxf7 {[%clk 0:02:27.3]} 13... Bb4+ {[%clk 0:01:16.8]} 14.
Kf1 {[%clk 0:02:28.3]} 14... Kxf7 {[%clk 0:01:16.4]} 15. Nxd4 {[%clk 0:02:27.3]}
15... Nxe5 {[%clk 0:01:09.8]} 16. Bg6+ {[%clk 0:01:55.5]} 16... Ke7 {[%clk
0:01:02.3]} 17. Bf4 {[%clk 0:01:55.7]} 17... Bd6 {[%clk 0:00:52]} 18. Qd2 {[%clk
0:01:39.5]} 18... Nc4 {[%clk 0:00:05.2]} 19. Bxd6+ {[%clk 0:01:10.9]} 19... Qxd6
{[%clk 0:00:07.1]} 20. Qe2 {[%clk 0:01:12.4]} 20... Qf4 {[%clk 0:00:07.3]} 21.
Rd1 {[%clk 0:01:10.8]} 21... Rf8 {[%clk 0:00:06.4]} 22. Rh3 {[%clk 0:01:04]}
22... Bd7 {[%clk 0:00:07.6]} 23. b3 {[%clk 0:00:59.4]} 23... Ne5 {[%clk
0:00:07.2]} 24. Re3 {[%clk 0:00:51]} 24... Nxg6 {[%clk 0:00:07.1]} 25. Rxe6+
{[%clk 0:00:50.4]} 25... Bxe6 {[%clk 0:00:05.2]} 26. Qxe6+ {[%clk 0:00:52.3]}
26... Kd8 {[%clk 0:00:05.6]} 27. Qxd5+ {[%clk 0:00:43.7]} 27... Ke8 {[%clk
0:00:06.2]} 28. Qb5+ {[%clk 0:00:27.8]} 28... Kf7 {[%clk 0:00:07]} 29. hxg6+
{[%clk 0:00:20.7]} 29... Kxg6 {[%clk 0:00:08.9]} 30. Qd3+ {[%clk 0:00:22.3]}
30... Kf7 {[%clk 0:00:05.6]} 31. Qh7+ {[%clk 0:00:21.7]} 31... Kf6 {[%clk
0:00:06.8]} 32. Ne2 {[%clk 0:00:13.3]} 32... Qg5 {[%clk 0:00:05.6]} 33. Rd6+
{[%clk 0:00:11.7]} 33... Ke5 {[%clk 0:00:05.3]} 34. Qd3 {[%clk 0:00:12.7]} 34...
Qg4 {[%clk 0:00:03.9]} 35. Qd5# {[%clk 0:00:13.4]} 1-0

[Event "*** Titled Tuesday Blitz"]
[Site "Chess.com"]
[Date "2019.06.04"]
[Round "9"]
[White "Bryakin_Mikhail"]
[Black "chessking2151"]
[Result "1-0"]
[WhiteElo "2732"]
[BlackElo "2597"]
[TimeControl "180+2"]
[EndTime "15:06:58 PDT"]
[Termination "Bryakin_Mikhail won by resignation"]

1. d4 {[%clk 0:02:33.7]} 1... Nf6 {[%clk 0:03:00.3]} 2. c4 {[%clk 0:02:34.2]}
2... e6 {[%clk 0:03:01.6]} 3. g3 {[%clk 0:02:34.1]} 3... d5 {[%clk 0:03:01.5]}
4. Bg2 {[%clk 0:02:35.4]} 4... Bb4+ {[%clk 0:02:52.2]} 5. Bd2 {[%clk 0:02:36.1]}
5... Be7 {[%clk 0:02:53.1]} 6. Nf3 {[%clk 0:02:37.5]} 6... O-O {[%clk
0:02:53.5]} 7. O-O {[%clk 0:02:39.4]} 7... c6 {[%clk 0:02:54.8]} 8. a4 {[%clk
0:02:39.2]} 8... a5 {[%clk 0:02:47]} 9. Qc2 {[%clk 0:02:37.9]} 9... Na6 {[%clk
0:02:32.8]} 10. Na3 {[%clk 0:02:31.1]} 10... Nb4 {[%clk 0:02:29.8]} 11. Qb3
{[%clk 0:02:29.1]} 11... Ne4 {[%clk 0:02:26.9]} 12. Bf4 {[%clk 0:02:27.6]} 12...
b6 {[%clk 0:02:07.9]} 13. Rac1 {[%clk 0:02:23]} 13... Ba6 {[%clk 0:02:02.9]} 14.
Rfd1 {[%clk 0:02:24]} 14... Qe8 {[%clk 0:01:24.7]} 15. Bc7 {[%clk 0:02:11.1]}
15... dxc4 {[%clk 0:00:46]} 16. Nxc4 {[%clk 0:02:06.3]} 16... Nd5 {[%clk
0:00:45.1]} 17. Bf4 {[%clk 0:01:52.6]} 17... f5 {[%clk 0:00:20.5]} 18. Be5
{[%clk 0:01:45.5]} 18... Bb4 {[%clk 0:00:18.2]} 19. Ne1 {[%clk 0:01:33.7]} 19...
b5 {[%clk 0:00:18]} 20. axb5 {[%clk 0:01:32.8]} 20... cxb5 {[%clk 0:00:18.1]}
21. Ne3 {[%clk 0:01:31.7]} 21... a4 {[%clk 0:00:19.1]} 22. Qd3 {[%clk
0:01:32.3]} 22... Bb7 {[%clk 0:00:08]} 23. N1c2 {[%clk 0:01:24.7]} 23... Be7
{[%clk 0:00:07.9]} 24. Nxd5 {[%clk 0:01:18.3]} 24... Bxd5 {[%clk 0:00:07.7]} 25.
Ne3 {[%clk 0:01:19.8]} 25... Bb3 {[%clk 0:00:09.2]} 26. Rf1 {[%clk 0:01:20.9]}
26... Rc8 {[%clk 0:00:03.7]} 27. d5 {[%clk 0:01:17.5]} 27... Rxc1 {[%clk
0:00:02.7]} 28. Rxc1 {[%clk 0:01:19.4]} 28... exd5 {[%clk 0:00:04.2]} 29. Nxd5
{[%clk 0:01:19.5]} 29... Kh8 {[%clk 0:00:04.5]} 30. Nc7 {[%clk 0:01:18.9]} 30...
Qf7 {[%clk 0:00:04.4]} 31. Nxb5 {[%clk 0:01:18.5]} 31... Bc5 {[%clk 0:00:04.2]}
32. Bd4 {[%clk 0:01:19.3]} 32... Rd8 {[%clk 0:00:02.8]} 33. e3 {[%clk
0:01:20.6]} 33... Bf8 {[%clk 0:00:03.2]} 34. Rc7 {[%clk 0:01:18.5]} 34... Qe6
{[%clk 0:00:03.1]} 35. Bxg7+ {[%clk 0:01:19]} 35... Bxg7 {[%clk 0:00:03.4]} 36.
Qxd8+ {[%clk 0:01:20.4]} 36... Qg8 {[%clk 0:00:05.1]} 37. Qd7 {[%clk 0:01:19.5]}
37... Be6 {[%clk 0:00:05.2]} 38. Qc6 {[%clk 0:01:20.6]} 38... Bd5 {[%clk
0:00:06]} 39. Qa6 {[%clk 0:01:17.7]} 39... Be6 {[%clk 0:00:05.8]} 40. Nd4 {[%clk
0:01:17.3]} 40... Bxd4 {[%clk 0:00:05]} 41. exd4 {[%clk 0:01:19.2]} 41... Qd8
{[%clk 0:00:05.9]} 42. Qb6 {[%clk 0:01:13.9]} 42... Bg8 {[%clk 0:00:05.9]} 43.
g4 {[%clk 0:01:09.2]} 43... Qg5 {[%clk 0:00:05.5]} 44. Qa5 {[%clk 0:00:53.8]}
44... Qf4 {[%clk 0:00:02.8]} 45. Qe5+ {[%clk 0:00:54.6]} 45... Qxe5 {[%clk
0:00:03.9]} 46. dxe5 {[%clk 0:00:56.5]} 46... Nd2 {[%clk 0:00:05.1]} 47. gxf5
{[%clk 0:00:57.4]} 47... Nc4 {[%clk 0:00:06.5]} 48. e6 {[%clk 0:00:58.9]} 48...
Nxb2 {[%clk 0:00:08]} 49. e7 {[%clk 0:01:00.2]} 49... a3 {[%clk 0:00:09.6]} 50.
e8=Q {[%clk 0:01:01.6]} 1-0

[Event "*** Titled Tuesday Blitz"]
[Site "Chess.com"]
[Date "2019.06.04"]
[Round "9"]
[White "Tacticalon"]
[Black "BillieKimbah"]
[Result "1-0"]
[WhiteElo "2741"]
[BlackElo "2805"]
[TimeControl "180+2"]
[EndTime "15:07:20 PDT"]
[Termination "Tacticalon won by resignation"]

1. d4 {[%clk 0:03:01.6]} 1... Nf6 {[%clk 0:03:00.7]} 2. c4 {[%clk 0:03:01.6]}
2... e6 {[%clk 0:03:01.9]} 3. Nc3 {[%clk 0:03:00.8]} 3... Bb4 {[%clk 0:03:02.1]}
4. e3 {[%clk 0:03:02.1]} 4... O-O {[%clk 0:03:01.9]} 5. Ne2 {[%clk 0:03:02]}
5... Re8 {[%clk 0:03:02.5]} 6. a3 {[%clk 0:03:02]} 6... Bf8 {[%clk 0:03:03.4]}
7. Ng3 {[%clk 0:02:51.5]} 7... d6 {[%clk 0:03:00.9]} 8. Bd3 {[%clk 0:02:46.6]}
8... e5 {[%clk 0:03:01.2]} 9. d5 {[%clk 0:02:40.6]} 9... a5 {[%clk 0:02:57.6]}
10. O-O {[%clk 0:02:38.9]} 10... g6 {[%clk 0:02:54.8]} 11. e4 {[%clk 0:02:34.2]}
11... Bg7 {[%clk 0:02:41.6]} 12. Be3 {[%clk 0:02:23.8]} 12... Ng4 {[%clk
0:02:39.3]} 13. Bd2 {[%clk 0:02:14.7]} 13... Na6 {[%clk 0:02:36.2]} 14. h3
{[%clk 0:02:07.5]} 14... Nf6 {[%clk 0:02:32.9]} 15. b3 {[%clk 0:02:01.3]} 15...
Bd7 {[%clk 0:02:27.6]} 16. Be3 {[%clk 0:01:56.6]} 16... h5 {[%clk 0:02:26.3]}
17. Bc2 {[%clk 0:01:48.8]} 17... Rf8 {[%clk 0:02:19]} 18. Rb1 {[%clk 0:01:44.8]}
18... Nh7 {[%clk 0:02:08.3]} 19. Qd2 {[%clk 0:01:37.4]} 19... Bf6 {[%clk
0:01:58.8]} 20. Nge2 {[%clk 0:01:31.9]} 20... Bg5 {[%clk 0:01:57.8]} 21. f4
{[%clk 0:01:27.8]} 21... exf4 {[%clk 0:01:56]} 22. Nxf4 {[%clk 0:01:29.4]} 22...
Qe7 {[%clk 0:01:52.6]} 23. Rbe1 {[%clk 0:01:20.3]} 23... Rae8 {[%clk 0:01:52.7]}
24. Nd3 {[%clk 0:01:17.7]} 24... Bxe3+ {[%clk 0:01:17.7]} 25. Rxe3 {[%clk
0:01:14.6]} 25... Qh4 {[%clk 0:01:17.9]} 26. Rf4 {[%clk 0:01:10.4]} 26... Qg5
{[%clk 0:01:18]} 27. Ne2 {[%clk 0:01:03.9]} 27... Re7 {[%clk 0:01:17.4]} 28.
Qxa5 {[%clk 0:00:59.2]} 28... f5 {[%clk 0:01:09.4]} 29. e5 {[%clk 0:00:45.8]}
29... dxe5 {[%clk 0:01:02.5]} 30. Nxe5 {[%clk 0:00:46.2]} 30... Be8 {[%clk
0:00:51.1]} 31. Rg3 {[%clk 0:00:32.9]} 31... Qh6 {[%clk 0:00:46]} 32. d6 {[%clk
0:00:28.8]} 32... cxd6 {[%clk 0:00:45]} 33. Qd5+ {[%clk 0:00:27.7]} 33... Kh8
{[%clk 0:00:25.6]} 34. Qxd6 {[%clk 0:00:28.7]} 34... Rg7 {[%clk 0:00:27.1]} 35.
Rxf5 {[%clk 0:00:21.9]} 35... Rxf5 {[%clk 0:00:24.8]} 36. Bxf5 {[%clk
0:00:22.1]} 36... h4 {[%clk 0:00:26.1]} 37. Rxg6 {[%clk 0:00:18.7]} 37... Qe3+
{[%clk 0:00:21.5]} 38. Kf1 {[%clk 0:00:16.2]} 38... Bxg6 {[%clk 0:00:08.6]} 39.
Nxg6+ {[%clk 0:00:16.6]} 39... Kg8 {[%clk 0:00:09.3]} 40. Be6+ {[%clk
0:00:17.8]} 40... Rf7+ {[%clk 0:00:10.4]} 41. Bxf7+ {[%clk 0:00:19.1]} 41...
Kxf7 {[%clk 0:00:12.3]} 42. Ne5+ {[%clk 0:00:20.6]} 42... Kg7 {[%clk 0:00:10.4]}
43. Qg6+ {[%clk 0:00:21.2]} 1-0

[Event "*** Titled Tuesday Blitz"]
[Site "Chess.com"]
[Date "2019.06.04"]
[Round "9"]
[White "NicoChasin"]
[Black "PaulfromSPb"]
[Result "0-1"]
[WhiteElo "2465"]
[BlackElo "2672"]
[TimeControl "180+2"]
[EndTime "15:07:22 PDT"]
[Termination "PaulfromSPb won by resignation"]

1. e4 {[%clk 0:03:01.9]} 1... c5 {[%clk 0:02:58.5]} 2. Nf3 {[%clk 0:03:01.9]}
2... a6 {[%clk 0:02:59.6]} 3. d4 {[%clk 0:03:02.1]} 3... cxd4 {[%clk 0:02:59.9]}
4. Nxd4 {[%clk 0:03:04]} 4... Nf6 {[%clk 0:03:00.9]} 5. Nc3 {[%clk 0:03:00.2]}
5... e5 {[%clk 0:03:01.1]} 6. Nb3 {[%clk 0:02:57.3]} 6... Bb4 {[%clk 0:03:00.8]}
7. Bd3 {[%clk 0:02:45.3]} 7... d5 {[%clk 0:02:56.3]} 8. exd5 {[%clk 0:02:44.7]}
8... e4 {[%clk 0:02:56.8]} 9. Bc4 {[%clk 0:02:43.5]} 9... b5 {[%clk 0:02:57.1]}
10. Be2 {[%clk 0:02:42.6]} 10... Nxd5 {[%clk 0:02:55.8]} 11. Bd2 {[%clk
0:02:30.3]} 11... Bxc3 {[%clk 0:02:52]} 12. Bxc3 {[%clk 0:02:30.7]} 12... Nxc3
{[%clk 0:02:47.2]} 13. Qxd8+ {[%clk 0:02:29.7]} 13... Kxd8 {[%clk 0:02:49.1]}
14. bxc3 {[%clk 0:02:31]} 14... Bb7 {[%clk 0:02:44.1]} 15. Nc5 {[%clk
0:02:29.6]} 15... Bc6 {[%clk 0:02:44.5]} 16. a4 {[%clk 0:02:29.4]} 16... bxa4
{[%clk 0:02:43.4]} 17. O-O-O+ {[%clk 0:02:28.6]} 17... Kc7 {[%clk 0:02:43.3]}
18. Rd4 {[%clk 0:02:22.1]} 18... Rd8 {[%clk 0:02:24.7]} 19. Rhd1 {[%clk
0:02:18.7]} 19... Rxd4 {[%clk 0:02:24.2]} 20. Rxd4 {[%clk 0:02:20.6]} 20... Nd7
{[%clk 0:02:19.1]} 21. Nxd7 {[%clk 0:02:18.3]} 21... Bxd7 {[%clk 0:02:17.2]} 22.
Rxe4 {[%clk 0:02:19.6]} 22... a3 {[%clk 0:01:49.6]} 23. Bc4 {[%clk 0:02:18.4]}
23... Rb8 {[%clk 0:01:44.5]} 24. Bxf7 {[%clk 0:02:17]} 24... Rf8 {[%clk
0:01:44.1]} 25. Bb3 {[%clk 0:02:12.8]} 25... Rxf2 {[%clk 0:01:42.9]} 26. g3
{[%clk 0:02:03.7]} 26... Rxh2 {[%clk 0:01:39.5]} 27. Re7 {[%clk 0:02:02.8]}
27... g6 {[%clk 0:01:32.3]} 28. Kb1 {[%clk 0:01:53.8]} 28... Kd6 {[%clk
0:01:25.8]} 29. Rf7 {[%clk 0:01:52.2]} 29... a5 {[%clk 0:01:15.5]} 30. Rf6+
{[%clk 0:01:46.8]} 30... Kc7 {[%clk 0:01:08.4]} 31. Ra6 {[%clk 0:01:42.9]} 31...
Rg2 {[%clk 0:01:03.8]} 32. Rxa5 {[%clk 0:01:40.5]} 32... Rxg3 {[%clk 0:01:04.1]}
33. Rxa3 {[%clk 0:01:40]} 33... h5 {[%clk 0:01:04.4]} 34. Ra7+ {[%clk
0:01:39.6]} 34... Kd6 {[%clk 0:01:01.4]} 35. Ra6+ {[%clk 0:01:40.5]} 35... Ke7
{[%clk 0:00:56.1]} 36. Ra7 {[%clk 0:01:39]} 36... h4 {[%clk 0:00:56.4]} 37. Ba4
{[%clk 0:01:38.9]} 37... Rg1+ {[%clk 0:00:57.3]} 38. Kb2 {[%clk 0:01:39.7]}
38... Rd1 {[%clk 0:00:58.3]} 39. c4 {[%clk 0:01:32]} 39... h3 {[%clk 0:00:56]}
40. c5 {[%clk 0:01:26.8]} 40... h2 {[%clk 0:00:55.6]} 41. Bc6 {[%clk 0:01:27.8]}
41... Ke6 {[%clk 0:00:50.8]} 42. Bf3 {[%clk 0:00:57.2]} 42... h1=Q {[%clk
0:00:51]} 43. Bxh1 {[%clk 0:00:51.5]} 43... Rxh1 {[%clk 0:00:51.2]} 44. Ra6+
{[%clk 0:00:53]} 44... Kf5 {[%clk 0:00:52.5]} 45. c6 {[%clk 0:00:53.7]} 45...
Be6 {[%clk 0:00:53.6]} 46. c7 {[%clk 0:00:54.9]} 46... Rh8 {[%clk 0:00:54.3]}
47. Kc3 {[%clk 0:00:52.4]} 47... Rc8 {[%clk 0:00:51.7]} 48. Ra7 {[%clk
0:00:51.9]} 48... Ke5 {[%clk 0:00:52.1]} 49. Kb4 {[%clk 0:00:46.6]} 49... Kd6
{[%clk 0:00:51.5]} 50. Ra6+ {[%clk 0:00:45.9]} 50... Kd7 {[%clk 0:00:52.4]} 51.
c4 {[%clk 0:00:45.3]} 51... Rxc7 {[%clk 0:00:53.3]} 52. c5 {[%clk 0:00:47.2]}
52... Bf5 {[%clk 0:00:49.6]} 53. Kc4 {[%clk 0:00:44.8]} 53... Rc6 {[%clk
0:00:41.4]} 54. Ra7+ {[%clk 0:00:44.8]} 54... Ke6 {[%clk 0:00:42.6]} 55. Kb5
{[%clk 0:00:45.8]} 55... Kd5 {[%clk 0:00:41.9]} 0-1

[Event "*** Titled Tuesday Blitz"]
[Site "Chess.com"]
[Date "2019.06.04"]
[Round "9"]
[White "FrenchMonster2002"]
[Black "lexiel"]
[Result "0-1"]
[WhiteElo "2380"]
[BlackElo "2280"]
[TimeControl "180+2"]
[EndTime "15:07:34 PDT"]
[Termination "lexiel won by checkmate"]

1. e4 {[%clk 0:03:01.9]} 1... c5 {[%clk 0:02:59.5]} 2. Nc3 {[%clk 0:03:02.8]}
2... Nc6 {[%clk 0:02:58.4]} 3. Bb5 {[%clk 0:03:01.6]} 3... Nd4 {[%clk
0:02:57.4]} 4. Nf3 {[%clk 0:03:02.1]} 4... e6 {[%clk 0:02:58.1]} 5. O-O {[%clk
0:02:58.4]} 5... a6 {[%clk 0:02:57.1]} 6. Bd3 {[%clk 0:02:59.2]} 6... Ne7 {[%clk
0:02:58]} 7. b3 {[%clk 0:02:52.9]} 7... Nec6 {[%clk 0:02:58.1]} 8. Nxd4 {[%clk
0:02:51.5]} 8... cxd4 {[%clk 0:02:52.1]} 9. Ne2 {[%clk 0:02:52.5]} 9... d5
{[%clk 0:02:49.2]} 10. Bb2 {[%clk 0:02:46.2]} 10... dxe4 {[%clk 0:02:46.9]} 11.
Bxe4 {[%clk 0:02:47.7]} 11... Bc5 {[%clk 0:02:47.8]} 12. c3 {[%clk 0:02:09.9]}
12... dxc3 {[%clk 0:02:47.4]} 13. dxc3 {[%clk 0:02:03.4]} 13... Qc7 {[%clk
0:02:37.3]} 14. c4 {[%clk 0:01:52.8]} 14... O-O {[%clk 0:02:36.8]} 15. Qd3
{[%clk 0:01:37.7]} 15... f5 {[%clk 0:02:36.2]} 16. Bxc6 {[%clk 0:01:21.7]} 16...
bxc6 {[%clk 0:02:33.3]} 17. Qc3 {[%clk 0:01:12.9]} 17... Bd6 {[%clk 0:02:26.8]}
18. f4 {[%clk 0:01:08.2]} 18... c5 {[%clk 0:02:27.8]} 19. Rad1 {[%clk
0:01:08.2]} 19... Rf7 {[%clk 0:02:21.9]} 20. Rd3 {[%clk 0:00:59.7]} 20... Bb7
{[%clk 0:02:22.2]} 21. Rfd1 {[%clk 0:00:54.6]} 21... Bf8 {[%clk 0:02:16.9]} 22.
R1d2 {[%clk 0:00:44.4]} 22... Be4 {[%clk 0:02:13.8]} 23. Rg3 {[%clk 0:00:37.7]}
23... Rd8 {[%clk 0:02:14.7]} 24. h4 {[%clk 0:00:34.4]} 24... Rxd2 {[%clk
0:02:06]} 25. Qxd2 {[%clk 0:00:36.3]} 25... Rd7 {[%clk 0:02:06.7]} 26. Qc3
{[%clk 0:00:34.1]} 26... Qd8 {[%clk 0:02:02.6]} 27. Rh3 {[%clk 0:00:21.1]} 27...
Rd1+ {[%clk 0:01:52.9]} 28. Kh2 {[%clk 0:00:22.6]} 28... Rd3 {[%clk 0:01:53.8]}
29. Rxd3 {[%clk 0:00:22.8]} 29... Bxd3 {[%clk 0:01:55]} 30. Qe1 {[%clk
0:00:17.2]} 30... Bxe2 {[%clk 0:01:55.6]} 31. Qxe2 {[%clk 0:00:19.1]} 31...
Qxh4+ {[%clk 0:01:56.8]} 32. Kg1 {[%clk 0:00:20.7]} 32... Qe7 {[%clk 0:01:52.1]}
33. Qe5 {[%clk 0:00:19.6]} 33... Qd6 {[%clk 0:01:51.4]} 34. Kf2 {[%clk
0:00:16.9]} 34... Kf7 {[%clk 0:01:48.2]} 35. Ke2 {[%clk 0:00:15.3]} 35... Qc6
{[%clk 0:01:47.7]} 36. Kf2 {[%clk 0:00:11.8]} 36... Qd7 {[%clk 0:01:46.9]} 37.
Ke2 {[%clk 0:00:12]} 37... Qb7 {[%clk 0:01:44.2]} 38. Kf2 {[%clk 0:00:12.5]}
38... Qc6 {[%clk 0:01:42.5]} 39. Bc3 {[%clk 0:00:11.2]} 39... Qd7 {[%clk
0:01:41.4]} 40. Ke2 {[%clk 0:00:11.8]} 40... Kg6 {[%clk 0:01:41]} 41. Qe3 {[%clk
0:00:11.4]} 41... h6 {[%clk 0:01:40.8]} 42. Qg3+ {[%clk 0:00:12.3]} 42... Kh7
{[%clk 0:01:42]} 43. Qe3 {[%clk 0:00:13.6]} 43... Qc6 {[%clk 0:01:42.7]} 44. Kf2
{[%clk 0:00:14.3]} 44... Qd7 {[%clk 0:01:41]} 45. Ke2 {[%clk 0:00:15]} 45... Bd6
{[%clk 0:01:42]} 46. Be5 {[%clk 0:00:12.7]} 46... Bxe5 {[%clk 0:01:40.5]} 47.
Qxe5 {[%clk 0:00:14.6]} 47... Qc6 {[%clk 0:01:40.6]} 48. Kf2 {[%clk 0:00:13.8]}
48... a5 {[%clk 0:01:41.7]} 49. Kg3 {[%clk 0:00:07.7]} 49... Kg6 {[%clk
0:01:41.6]} 50. Kf2 {[%clk 0:00:08]} 50... Kf7 {[%clk 0:01:42.6]} 51. Qb8 {[%clk
0:00:06.5]} 51... Qe4 {[%clk 0:01:42]} 52. Qc7+ {[%clk 0:00:06.6]} 52... Kg6
{[%clk 0:01:42.6]} 53. g3 {[%clk 0:00:05]} 53... Qc2+ {[%clk 0:01:42.9]} 54. Kf3
{[%clk 0:00:06.5]} 54... Qxa2 {[%clk 0:01:43.9]} 55. Qxc5 {[%clk 0:00:05.2]}
55... Qxb3+ {[%clk 0:01:45.4]} 56. Kg2 {[%clk 0:00:06.9]} 56... a4 {[%clk
0:01:46.7]} 57. Qb5 {[%clk 0:00:04.2]} 57... Qd1 {[%clk 0:01:46.9]} 58. Qe8+
{[%clk 0:00:04.7]} 58... Kh7 {[%clk 0:01:46.2]} 59. Qxe6 {[%clk 0:00:05.9]}
59... Qc2+ {[%clk 0:01:45.1]} 60. Kh3 {[%clk 0:00:06.2]} 60... a3 {[%clk
0:01:46]} 61. Qa6 {[%clk 0:00:02.7]} 61... a2 {[%clk 0:01:46.6]} 62. c5 {[%clk
0:00:03.8]} 62... Qb1 {[%clk 0:01:46.6]} 63. c6 {[%clk 0:00:03.2]} 63... Qh1#
{[%clk 0:01:46.4]} 0-1

[Event "*** Titled Tuesday Blitz"]
[Site "Chess.com"]
[Date "2019.06.04"]
[Round "9"]
[White "SloLev"]
[Black "Filip_Covic"]
[Result "0-1"]
[WhiteElo "2483"]
[BlackElo "2379"]
[TimeControl "180+2"]
[EndTime "15:07:38 PDT"]
[Termination "Filip_Covic won by checkmate"]

1. d4 {[%clk 0:03:01.9]} 1... Nf6 {[%clk 0:03:00.2]} 2. Bf4 {[%clk 0:03:02]}
2... e6 {[%clk 0:03:00.4]} 3. e3 {[%clk 0:03:00.3]} 3... c5 {[%clk 0:03:01.3]}
4. c3 {[%clk 0:03:01]} 4... cxd4 {[%clk 0:03:02.3]} 5. exd4 {[%clk 0:03:01.7]}
5... b6 {[%clk 0:03:03.8]} 6. Nf3 {[%clk 0:03:02.6]} 6... Bb7 {[%clk 0:03:05.2]}
7. Bd3 {[%clk 0:03:04.1]} 7... Ke7 {[%clk 0:03:06]} 8. Nbd2 {[%clk 0:02:59.4]}
8... Ke8 {[%clk 0:02:37.6]} 9. Nc4 {[%clk 0:02:53.5]} 9... d6 {[%clk 0:02:34.3]}
10. Qe2 {[%clk 0:02:42.1]} 10... Be7 {[%clk 0:02:31.4]} 11. h4 {[%clk
0:02:38.2]} 11... Kf8 {[%clk 0:02:29.2]} 12. h5 {[%clk 0:02:32.4]} 12... h6
{[%clk 0:02:30.2]} 13. O-O-O {[%clk 0:02:30.9]} 13... b5 {[%clk 0:02:27.9]} 14.
Ne3 {[%clk 0:02:29.6]} 14... a6 {[%clk 0:02:27.7]} 15. g4 {[%clk 0:02:30.8]}
15... Nd5 {[%clk 0:02:24.8]} 16. Nxd5 {[%clk 0:02:23.7]} 16... Bxd5 {[%clk
0:02:26.4]} 17. Kb1 {[%clk 0:02:23.1]} 17... Nd7 {[%clk 0:02:23.8]} 18. Rh3
{[%clk 0:02:19]} 18... Qa5 {[%clk 0:02:21.8]} 19. a3 {[%clk 0:02:06.5]} 19...
Rc8 {[%clk 0:02:22.9]} 20. g5 {[%clk 0:02:03.7]} 20... hxg5 {[%clk 0:02:19.5]}
21. Bxg5 {[%clk 0:02:00.5]} 21... Bxg5 {[%clk 0:02:16.5]} 22. Nxg5 {[%clk
0:02:00.6]} 22... Qa4 {[%clk 0:02:15]} 23. Be4 {[%clk 0:01:52.8]} 23... Qb3
{[%clk 0:02:10.2]} 24. Qf3 {[%clk 0:01:11]} 24... Nf6 {[%clk 0:02:09.4]} 25.
Bxd5 {[%clk 0:01:07]} 25... Qxd5 {[%clk 0:02:04.5]} 26. Qf4 {[%clk 0:01:08.1]}
26... Rh6 {[%clk 0:01:50]} 27. Rg1 {[%clk 0:01:02.7]} 27... Qf5+ {[%clk
0:01:27.7]} 28. Qxf5 {[%clk 0:01:03.5]} 28... exf5 {[%clk 0:01:27.6]} 29. Rgh1
{[%clk 0:00:57.6]} 29... Re8 {[%clk 0:01:25]} 30. Re3 {[%clk 0:00:52.4]} 30...
Rxe3 {[%clk 0:01:22.9]} 31. fxe3 {[%clk 0:00:53.2]} 31... Rxh5 {[%clk
0:01:19.9]} 32. Rg1 {[%clk 0:00:54.6]} 32... Ng4 {[%clk 0:01:16.2]} 33. Nf3
{[%clk 0:00:48.4]} 33... Nxe3 {[%clk 0:01:16.3]} 34. Re1 {[%clk 0:00:41.4]}
34... f4 {[%clk 0:01:17]} 35. Ng1 {[%clk 0:00:40.1]} 35... g5 {[%clk 0:01:15.8]}
36. b3 {[%clk 0:00:32.5]} 36... Rh2 {[%clk 0:01:10.7]} 37. a4 {[%clk 0:00:32.8]}
37... g4 {[%clk 0:01:08]} 38. Ne2 {[%clk 0:00:33.3]} 38... f3 {[%clk 0:01:06.6]}
39. Ng3 {[%clk 0:00:34.6]} 39... Nd5 {[%clk 0:01:03.5]} 40. c4 {[%clk
0:00:33.4]} 40... Nc3+ {[%clk 0:01:03.8]} 41. Kc1 {[%clk 0:00:33.9]} 41... bxc4
{[%clk 0:01:01.5]} 42. bxc4 {[%clk 0:00:32.8]} 42... Rg2 {[%clk 0:00:59.8]} 43.
Nf5 {[%clk 0:00:25]} 43... f2 {[%clk 0:00:57.8]} 44. Rf1 {[%clk 0:00:26.4]}
44... Rg1 {[%clk 0:00:56.6]} 45. Ne3 {[%clk 0:00:27.8]} 45... g3 {[%clk
0:00:56.6]} 46. Kd2 {[%clk 0:00:28.9]} 46... Rxf1 {[%clk 0:00:56.9]} 47. Nxf1
{[%clk 0:00:29.8]} 47... g2 {[%clk 0:00:58.3]} 48. Ne3 {[%clk 0:00:26.8]} 48...
g1=Q {[%clk 0:00:58.1]} 49. Kxc3 {[%clk 0:00:28.3]} 49... Qe1+ {[%clk
0:00:58.6]} 50. Kd3 {[%clk 0:00:29.1]} 50... Qxe3+ {[%clk 0:00:59.7]} 51. Kxe3
{[%clk 0:00:30.1]} 51... f1=Q {[%clk 0:01:01.5]} 52. Ke4 {[%clk 0:00:31.6]}
52... Qxc4 {[%clk 0:01:02.8]} 53. a5 {[%clk 0:00:30.1]} 53... Ke7 {[%clk
0:01:02.8]} 54. Kf5 {[%clk 0:00:28.8]} 54... Qxd4 {[%clk 0:01:02.2]} 55. Kg5
{[%clk 0:00:30.7]} 55... Ke6 {[%clk 0:01:01.1]} 56. Kh6 {[%clk 0:00:31.2]} 56...
Kf6 {[%clk 0:00:59.6]} 57. Kh7 {[%clk 0:00:31.8]} 57... Qh4+ {[%clk 0:00:59.4]}
58. Kg8 {[%clk 0:00:33]} 58... Qh5 {[%clk 0:00:59.5]} 59. Kf8 {[%clk 0:00:33]}
59... Qh8# {[%clk 0:01:00.9]} 0-1